bitfinex-derivatives/quotes_BTCF0:USTF0_20250918
["timestamp","ask_amount","ask_price","bid_price","bid_amount"]
[1758194550433,0.7498142,117350.0,117340.0,1.4635294]
[1758194550629,0.7498142,117350.0,117340.0,1.1305497]
[1758194550934,0.7498142,117350.0,117340.0,1.4635294]
[1758194551331,0.4168345,117350.0,117340.0,1.4635294]
[1758194551635,0.3807645,117350.0,117340.0,1.8117153]
[1758194552032,0.3807645,117350.0,117340.0,1.0360353]
[1758194552227,0.3807645,117350.0,117340.0,1.7264894]
[1758194554441,0.4037445,117350.0,117340.0,0.9508494]
[1758194554633,0.4037445,117350.0,117340.0,1.7264894]
[1758194556740,0.4037445,117350.0,117340.0,0.9508494]
[1758194557633,0.4037445,117350.0,117340.0,1.7262894]
[1758194558330,0.0429445,117350.0,117340.0,1.7262894]
[1758194559339,0.0429445,117350.0,117340.0,1.4762894]
[1758194559541,0.0429445,117350.0,117340.0,0.7008494]
[1758194559944,0.0429445,117350.0,117340.0,1.4763694]
[1758194560444,0.0429445,117350.0,117340.0,0.7008494]
[1758194560646,0.0429445,117350.0,117340.0,1.4762894]
[1758194560944,0.0199645,117350.0,117340.0,1.4762894]
[1758194561246,0.0199645,117350.0,117340.0,1.8370894]
[1758194561738,0.0199645,117350.0,117340.0,1.61484158]
[1758194563643,0.0199645,117350.0,117340.0,1.68329207]
[1758194565046,0.0199645,117350.0,117340.0,1.69166766]
[1758194565850,0.0199645,117350.0,117340.0,1.24795608]
[1758194566048,0.0199645,117350.0,117340.0,1.69166766]
[1758194567947,0.0199645,117350.0,117340.0,1.69130766]
[1758194568655,0.0429445,117350.0,117340.0,0.91622766]
[1758194569058,0.0429445,117350.0,117340.0,1.69122766]
[1758194571763,0.0429445,117350.0,117340.0,0.91622766]
[1758194571960,0.0429445,117350.0,117340.0,1.69106766]
[1758194578164,0.0429445,117350.0,117340.0,1.69070766]
[1758194579672,0.0429445,117350.0,117340.0,1.76708109]
[1758194581575,0.0429445,117350.0,117340.0,1.76688109]
[1758194582880,0.0429445,117350.0,117340.0,0.54888951]
[1758194583176,0.0562845,117350.0,117340.0,1.76676109]
[1758194583477,0.0562845,117350.0,117340.0,0.99260109]
[1758194583677,0.0562845,117350.0,117340.0,1.76704109]
[1758194583878,0.0429445,117350.0,117340.0,1.76704109]
[1758194584979,0.0199645,117350.0,117340.0,2.03704109]
[1758194585777,0.3609,117360.0,117350.0,0.03544]
[1758194585978,0.3608,117360.0,117350.0,0.47925158]
[1758194586170,0.02138,117360.0,117350.0,0.47925158]
[1758194587272,0.38228,117370.0,117360.0,0.01325]
[1758194587478,0.3608,117370.0,117360.0,1.25417158]
[1758194587880,0.3608,117370.0,117360.0,1.33054501]
[1758194588275,0.3608,117370.0,117360.0,1.25417158]
[1758194588579,0.3628,117370.0,117360.0,1.25417158]
[1758194589184,0.3658,117370.0,117360.0,1.25417158]
[1758194589377,0.005,117370.0,117360.0,1.25417158]
[1758194589580,0.005,117370.0,117360.0,1.33054501]
[1758194590883,0.005,117370.0,117360.0,1.69134501]
[1758194591582,0.005,117370.0,117360.0,1.24763343]
[1758194591784,0.005,117370.0,117360.0,1.69134501]
[1758194592689,0.02638,117370.0,117360.0,0.91642501]
[1758194592880,0.02638,117370.0,117360.0,1.69114501]
[1758194595276,0.02638,117370.0,117360.0,1.69098501]
[1758194596890,0.005,117370.0,117360.0,1.69098501]
[1758194598387,0.005,117370.0,117360.0,1.61461158]
[1758194602292,0.005,117370.0,117360.0,0.84005158]
[1758194602485,0.02638,117370.0,117360.0,1.61421158]
[1758194602886,0.02638,117370.0,117360.0,0.84005158]
[1758194603185,0.02638,117370.0,117360.0,1.61421158]
[1758194603580,0.02638,117370.0,117360.0,0.84005158]
[1758194603788,0.03972,117370.0,117360.0,1.60108158]
[1758194603987,0.03972,117370.0,117360.0,0.82680158]
[1758194604293,0.03972,117370.0,117360.0,1.60108158]
[1758194604691,0.03972,117370.0,117360.0,0.24414579]
[1758194604885,0.03972,117370.0,117360.0,1.01842579]
[1758194605898,0.03972,117370.0,117360.0,0.79657]
[1758194606195,0.03972,117370.0,117360.0,1.01842579]
[1758194607488,0.03972,117370.0,117360.0,1.24028158]
[1758194616300,0.03972,117370.0,117360.0,1.31665501]
[1758194617993,0.03972,117370.0,117360.0,0.09866343]
[1758194618200,0.87237579,117370.0,117360.0,0.79613]
[1758194618400,0.87237579,117370.0,117360.0,1.01798579]
[1758194618698,0.87237579,117370.0,117360.0,0.79613]
[1758194619101,0.65052,117370.0,117360.0,1.01798579]
[1758194619397,0.40052,117370.0,117360.0,1.01798579]
[1758194619599,0.40052,117370.0,117360.0,0.79613]
[1758194619791,0.40052,117370.0,117360.0,1.01798579]
[1758194621802,0.73329876,117370.0,117360.0,1.46168752]
[1758194625696,0.73329876,117370.0,117360.0,0.68784752]
[1758194625891,0.73329876,117370.0,117360.0,1.46168752]
[1758194626600,0.73329876,117370.0,117360.0,1.12890876]
[1758194627401,0.73329876,117370.0,117360.0,0.79613]
[1758194627600,0.73329876,117370.0,117360.0,1.12890876]
[1758194627801,0.73329876,117370.0,117360.0,1.46168752]
[1758194628302,0.73329876,117370.0,117360.0,1.53806095]
[1758194630806,0.73329876,117370.0,117360.0,1.20528219]
[1758194631104,0.73329876,117370.0,117360.0,1.53806095]
[1758194631702,0.73329876,117370.0,117360.0,1.20528219]
[1758194632910,0.73329876,117370.0,117360.0,1.53806095]
[1758194634598,0.40052,117370.0,117360.0,1.53806095]
[1758194634803,0.73329876,117370.0,117360.0,1.53806095]
[1758194635105,0.40052,117370.0,117360.0,1.53806095]
[1758194635310,0.02638,117370.0,117360.0,1.55096095]
[1758194638212,0.02638,117370.0,117360.0,1.47458752]
[1758194641322,0.02638,117370.0,117360.0,1.55096095]
[1758194641518,0.02638,117370.0,117360.0,1.47458752]
[1758194642217,0.02638,117370.0,117360.0,0.80903]
[1758194642516,0.02638,117370.0,117360.0,1.47458752]
[1758194644615,0.02638,117370.0,117360.0,0.03519]
[1758194644817,0.02638,117370.0,117360.0,1.47454752]
[1758194645218,0.02638,117370.0,117360.0,1.55092095]
[1758194645819,0.02638,117370.0,117360.0,1.47454752]
[1758194646722,0.02638,117370.0,117360.0,0.80899]
[1758194647022,0.02638,117370.0,117360.0,1.55092095]
[1758194647720,0.02638,117370.0,117360.0,1.63609235]
[1758194648216,0.02638,117370.0,117360.0,0.77712095]
[1758194648417,0.02638,117370.0,117360.0,1.55088095]
[1758194648619,0.02638,117370.0,117360.0,0.77712095]
[1758194648820,0.02638,117370.0,117360.0,0.88532343]
[1758194649916,0.02638,117370.0,117360.0,1.55088095]
[1758194651022,0.35915876,117370.0,117360.0,1.55088095]
[1758194653022,0.37311876,117370.0,117360.0,1.55088095]
[1758194653723,0.35915876,117370.0,117360.0,1.55088095]
[1758194655116,0.02638,117370.0,117360.0,1.55088095]
[1758194658227,0.02638,117370.0,117360.0,0.77712095]
[1758194658425,0.02638,117370.0,117360.0,1.55084095]
[1758194658618,0.35915876,117370.0,117360.0,1.55084095]
[1758194660022,0.02638,117370.0,117360.0,1.55084095]
[1758194660517,0.02638,117370.0,117360.0,0.77712095]
[1758194660831,0.02638,117370.0,117360.0,1.55084095]
[1758194668637,0.02638,117370.0,117360.0,0.77712095]
[1758194668934,0.73391876,117370.0,117360.0,0.77712095]
[1758194669236,0.73391876,117370.0,117360.0,1.55080095]
[1758194671541,0.40114,117370.0,117360.0,1.55080095]
[1758194672339,0.73391876,117370.0,117360.0,1.55080095]
[1758194672840,0.73391876,117370.0,117360.0,0.77712095]
[1758194673044,0.73391876,117370.0,117360.0,1.55080095]
[1758194677044,0.73391876,117370.0,117360.0,0.77712095]
[1758194677341,0.73391876,117370.0,117360.0,1.55076095]
[1758194678545,0.40114,117370.0,117360.0,1.55076095]
[1758194678738,0.73391876,117370.0,117360.0,1.55076095]
[1758194678937,0.73391876,117370.0,117360.0,1.47438752]
[1758194680048,0.73391876,117370.0,117360.0,1.55076095]
[1758194680342,0.73391876,117370.0,117360.0,1.47438752]
[1758194681542,0.37311876,117370.0,117360.0,1.47438752]
[1758194681747,0.73391876,117370.0,117360.0,1.47438752]
[1758194683739,0.40114,117370.0,117360.0,1.03066026]
[1758194684547,0.40114,117370.0,117360.0,1.10703369]
[1758194685651,0.04034,117370.0,117360.0,1.10703369]
[1758194685839,0.40114,117370.0,117360.0,1.10703369]
[1758194686039,0.40114,117370.0,117360.0,1.32886395]
[1758194687750,0.40114,117370.0,117360.0,1.25249052]
[1758194687953,0.62297026,117370.0,117360.0,0.09866343]
[1758194688153,0.62297026,117370.0,117360.0,0.32049369]
[1758194688450,0.62297026,117370.0,117360.0,0.02229]
[1758194688646,0.62297026,117370.0,117360.0,0.79585]
[1758194688842,0.87297026,117370.0,117360.0,0.79585]
[1758194690750,0.87297026,117370.0,117360.0,0.02229]
[1758194690951,0.87297026,117370.0,117360.0,0.79585]
[1758194704656,0.65114,117370.0,117360.0,1.01768026]
[1758194704854,0.87297026,117370.0,117360.0,0.79585]
[1758194705055,1.01194,117370.0,117360.0,0.79585]
[1758194705255,1.23377026,117370.0,117360.0,0.79585]
[1758194705457,1.23377026,117370.0,117360.0,0.02229]
[1758194705758,1.23377026,117370.0,117360.0,0.79577]
[1758194705954,1.23377026,117370.0,117360.0,0.02229]
[1758194706158,0.01323,117360.0,117350.0,0.77348]
[1758194706361,0.03547,117340.0,117330.0,0.42926369]
[1758194706556,0.03547,117340.0,117330.0,1.20274369]
[1758194708959,0.02224,117340.0,117330.0,1.20274369]
[1758194709456,0.02224,117340.0,117330.0,1.20374369]
[1758194711461,0.02224,117340.0,117330.0,1.12737026]
[1758194712556,0.02224,117340.0,117330.0,0.35389026]
[1758194712867,0.61810026,117340.0,117330.0,0.89765]
[1758194713960,0.39627,117340.0,117330.0,0.89765]
[1758194714263,0.39627,117340.0,117330.0,1.11948026]
[1758194714461,0.39627,117340.0,117330.0,0.89765]
[1758194714660,0.61810026,117340.0,117330.0,1.11948026]
[1758194715059,0.39627,117340.0,117330.0,1.11948026]
[1758194716664,0.61810026,117340.0,117330.0,1.11948026]
[1758194716960,0.61810026,117340.0,117330.0,0.89765]
[1758194721170,0.61810026,117340.0,117330.0,0.89769]
[1758194722071,0.39627,117340.0,117330.0,0.89769]
[1758194722369,0.61810026,117340.0,117330.0,0.89773]
[1758194725072,0.61810026,117340.0,117330.0,0.12413]
[1758194725273,0.61810026,117340.0,117330.0,0.89783]
[1758194726578,1.08993052,117340.0,117330.0,0.1011]
[1758194726875,1.08993052,117340.0,117330.0,0.8747]
[1758194732079,1.08993052,117340.0,117330.0,0.89712]
[1758194733278,1.11138289,117340.0,117330.0,0.89712]
[1758194733973,0.86138289,117340.0,117330.0,0.1011]
[1758194738376,0.83993052,117340.0,117330.0,0.1011]
[1758194741389,0.83993052,117340.0,117330.0,0.12352]
[1758194742785,0.39627,117340.0,117330.0,0.12352]
[1758194742986,0.61810026,117340.0,117330.0,0.12352]
[1758194743490,0.63957707,117340.0,117330.0,0.12352]
[1758194743691,0.83993052,117340.0,117330.0,0.12352]
[1758194744291,0.86140964,117340.0,117330.0,0.12352]
[1758194745192,0.83993052,117340.0,117330.0,0.12352]
[1758194745384,0.86141243,117340.0,117330.0,0.12352]
[1758194745792,1.08375633,117340.0,117330.0,0.12352]
[1758194747791,0.41775191,117340.0,117330.0,0.12352]
[1758194748294,1.08375633,117340.0,117330.0,0.12352]
[1758194750195,1.08375633,117340.0,117330.0,0.45652221]
[1758194752496,1.08375633,117340.0,117330.0,0.12352]
[1758194752795,1.08375633,117340.0,117330.0,0.45652221]
[1758194756195,1.08375633,117340.0,117330.0,0.12352]
[1758194756400,1.08375633,117340.0,117330.0,0.45652221]
[1758194756793,0.41775191,117340.0,117330.0,0.45652221]
[1758194756990,1.08375633,117340.0,117330.0,0.45652221]
[1758194757395,1.08375633,117340.0,117330.0,1.23020221]
[1758194760395,1.06227442,117340.0,117330.0,0.45652221]
[1758194760601,1.06227442,117340.0,117330.0,1.23020221]
[1758194760900,0.72927221,117340.0,117330.0,1.23938221]
[1758194761902,0.72927221,117340.0,117330.0,0.1327]
[1758194762102,0.75077407,117340.0,117330.0,1.23020221]
[1758194762300,0.75077407,117340.0,117330.0,1.23938221]
[1758194763305,0.72927221,117340.0,117330.0,1.23938221]
[1758194766503,0.39627,117340.0,117330.0,1.23938221]
[1758194766700,0.72927221,117340.0,117330.0,1.23938221]
[1758194767108,0.72927221,117340.0,117330.0,0.46570221]
[1758194767309,0.72927221,117340.0,117330.0,0.90634]
[1758194767607,0.72927221,117340.0,117330.0,1.23934221]
[1758194768510,0.39627,117340.0,117330.0,1.23934221]
[1758194768704,0.72927221,117340.0,117330.0,1.23934221]
[1758194770111,0.72927221,117340.0,117330.0,0.46570221]
[1758194770304,0.72927221,117340.0,117330.0,1.23934221]
[1758194770711,0.72927221,117340.0,117330.0,0.45652221]
[1758194770912,0.72927221,117340.0,117330.0,1.23016221]
[1758194772309,0.72927221,117340.0,117330.0,0.45652221]
[1758194772510,0.72927221,117340.0,117330.0,1.23016221]
[1758194772812,0.72927221,117340.0,117330.0,1.23934221]
[1758194772813,0.39627,117340.0,117330.0,1.23934221]
[1758194773015,0.38304,117340.0,117330.0,1.48934221]
[1758194773716,0.38304,117340.0,117330.0,0.71570221]
[1758194773912,0.38304,117340.0,117330.0,1.48934221]
[1758194774118,0.38304,117340.0,117330.0,1.90753862]
[1758194774321,0.39651,117350.0,117340.0,0.0357]
[1758194774516,0.39641,117350.0,117340.0,0.70180442]
[1758194775618,0.72941221,117350.0,117340.0,0.70180442]
[1758194775820,0.39641,117350.0,117340.0,0.70180442]
[1758194776023,0.39741,117350.0,117340.0,0.70180442]
[1758194776422,0.39741,117350.0,117340.0,0.71029434]
[1758194776824,0.38418,117350.0,117340.0,0.71029434]
[1758194777127,0.38418,117350.0,117340.0,0.7274961]
[1758194778523,0.38418,117350.0,117340.0,0.71900618]
[1758194779327,0.39696,117350.0,117340.0,0.05300176]
[1758194779528,0.72996221,117350.0,117340.0,1.49256618]
[1758194780428,0.72996221,117350.0,117340.0,1.15956397]
[1758194781522,0.72996221,117350.0,117340.0,1.49256618]
[1758194782024,0.39696,117350.0,117340.0,1.49256618]
[1758194782325,0.72996221,117350.0,117340.0,1.49256618]
[1758194782627,0.72996221,117350.0,117340.0,1.47965618]
[1758194783424,0.72996221,117350.0,117340.0,0.70609618]
[1758194783626,0.72996221,117350.0,117340.0,1.47961618]
[1758194784026,0.72996221,117350.0,117340.0,0.70609618]
[1758194784621,0.72996221,117350.0,117340.0,1.14661397]
[1758194785024,0.72996221,117350.0,117340.0,1.47961618]
[1758194789532,0.39696,117350.0,117340.0,1.47961618]
[1758194789835,0.72996221,117350.0,117340.0,1.47961618]
[1758194792132,0.72996221,117350.0,117340.0,0.81361176]
[1758194792331,0.72996221,117350.0,117340.0,1.47961618]
[1758194792532,0.72996221,117350.0,117340.0,0.37309397]
[1758194792733,0.72996221,117350.0,117340.0,1.14661397]
[1758194793132,0.72996221,117350.0,117340.0,1.47961618]
[1758194801938,0.72996221,117350.0,117340.0,1.49236618]
[1758194803038,0.39696,117350.0,117340.0,1.49236618]
[1758194803237,0.72996221,117350.0,117340.0,1.49236618]
[1758194803940,0.72996221,117350.0,117340.0,0.82636176]
[1758194804141,0.39696,117350.0,117340.0,1.49236618]
[1758194804441,0.72996221,117350.0,117340.0,1.49236618]
[1758194804939,0.72996221,117350.0,117340.0,1.49232618]
[1758194805738,0.39696,117350.0,117340.0,1.04824672]
[1758194814537,0.39696,117350.0,117340.0,1.03545672]
[1758194815240,0.39696,117350.0,117340.0,0.26201672]
[1758194815539,0.39696,117350.0,117340.0,1.03545672]
[1758194817743,0.61888496,117350.0,117340.0,0.26201672]
[1758194817944,1.22968496,117350.0,117340.0,0.02289]
[1758194818247,1.22968496,117350.0,117340.0,0.77354]
[1758194818451,1.47311114,117350.0,117340.0,0.77354]
[1758194818745,1.47311114,117350.0,117340.0,0.0001]
[1758194819145,1.25118618,117350.0,117340.0,0.0001]
[1758194821648,1.22968496,117350.0,117340.0,0.0001]
[1758194821847,1.25117722,117350.0,117340.0,0.0001]
[1758194822047,1.47310218,117350.0,117340.0,0.0001]
[1758194822248,1.25117722,117350.0,117340.0,0.0001]
[1758194822844,2.24654218,117350.0,117340.0,0.0001]
[1758194823048,0.035,117340.0,117330.0,0.1]
[1758194823254,1.65411262,117340.0,117330.0,0.1]
[1758194824253,1.65411262,117340.0,117330.0,0.101]
[1758194826050,1.2102627,117340.0,117330.0,0.12258]
[1758194826351,0.65874766,117340.0,117330.0,0.12258]
[1758194830657,0.88067262,117340.0,117330.0,0.12258]
[1758194831354,0.85918036,117340.0,117330.0,0.12258]
[1758194834056,1.21998036,117340.0,117330.0,0.12258]
[1758194836752,1.99346036,117340.0,117330.0,0.12258]
[1758194846463,2.0148951,117340.0,117330.0,0.12258]
[1758194851773,2.0148951,117340.0,117330.0,0.101]
[1758194853072,2.0148951,117340.0,117330.0,0.12214]
[1758194853273,1.2414151,117340.0,117330.0,0.12214]
[1758194853473,2.0148951,117340.0,117330.0,0.12214]
[1758194854067,2.0148951,117340.0,117330.0,0.1221]
[1758194854774,1.2414151,117340.0,117330.0,0.1221]
[1758194866280,1.4636195,117340.0,117330.0,0.1221]
[1758194868979,1.4636195,117340.0,117330.0,0.12198]
[1758194869478,1.4636195,117340.0,117330.0,0.10084]
[1758194877483,0.79756518,117340.0,117330.0,0.10084]
[1758194877687,1.4636195,117340.0,117330.0,0.10084]
[1758194878685,1.4636195,117340.0,117330.0,0.12304]
[1758194880785,1.4636195,117340.0,117330.0,0.45606716]
[1758194886586,1.4636195,117340.0,117330.0,0.12304]
[1758194886787,1.4636195,117340.0,117330.0,0.45606716]
[1758194887180,1.4636195,117340.0,117330.0,0.12304]
[1758194891992,1.4636195,117340.0,117330.0,0.12304]
[1758194894592,0.79756518,117340.0,117330.0,0.12304]
[1758194894792,1.4636195,117340.0,117330.0,0.12304]
[1758194895494,0.79756518,117340.0,117330.0,0.45606716]
[1758194895693,1.4636195,117340.0,117330.0,0.45606716]
[1758194901091,1.4636195,117340.0,117330.0,0.12304]
[1758194901290,1.4636195,117340.0,117330.0,0.45606716]
[1758194901685,1.4636195,117340.0,117330.0,0.12304]
[1758194902093,1.4636195,117340.0,117330.0,0.45606716]
[1758194902495,0.77613044,117340.0,117330.0,0.45606716]
[1758194902692,0.77613044,117340.0,117330.0,0.71871716]
[1758194902894,0.77613044,117340.0,117330.0,1.13693872]
[1758194903600,0.77613044,117340.0,117330.0,0.80391156]
[1758194905194,0.77613044,117340.0,117330.0,0.81244803]
[1758194905501,0.77613044,117340.0,117330.0,0.80391156]
[1758194906395,0.77613044,117340.0,117330.0,0.71871716]
[1758194906601,0.77613044,117340.0,117330.0,1.47918716]
[1758194908497,0.77613044,117340.0,117330.0,0.70606716]
[1758194908698,1.1091576,117340.0,117330.0,1.47914716]
[1758194910509,1.1091576,117340.0,117330.0,1.49179716]
[1758194910805,1.1091576,117340.0,117330.0,1.15877]
[1758194911000,1.1091576,117340.0,117330.0,1.49179716]
[1758194914009,0.3875576,117340.0,117330.0,1.49179716]
[1758194914212,0.7483576,117340.0,117330.0,1.49179716]
[1758194915111,0.41533044,117340.0,117330.0,1.49179716]
[1758194915410,0.7483576,117340.0,117330.0,1.15877]
[1758194915602,0.7483576,117340.0,117330.0,1.49179716]
[1758194916517,0.7483576,117340.0,117330.0,0.71871716]
[1758194916809,0.7483576,117340.0,117330.0,1.49171716]
[1758194918215,0.7483576,117340.0,117330.0,0.71871716]
[1758194918515,0.7483576,117340.0,117330.0,1.49171716]
[1758194919308,0.7483576,117340.0,117330.0,1.24171716]
[1758194922016,0.41533044,117340.0,117330.0,1.24171716]
[1758194922216,0.7483576,117340.0,117330.0,1.24171716]
[1758194922820,0.7483576,117340.0,117330.0,0.46871716]
[1758194923010,0.7483576,117340.0,117330.0,1.24167716]
[1758194923724,0.7483576,117340.0,117330.0,0.45606716]
[1758194924115,0.7483576,117340.0,117330.0,1.22898716]
[1758194925219,0.7483576,117340.0,117330.0,0.45606716]
[1758194925531,1.35282601,117340.0,117330.0,0.10084]
[1758194926125,2.12574601,117340.0,117330.0,0.10084]
[1758194926324,2.45877317,117340.0,117330.0,0.10084]
[1758194926621,2.12574601,117340.0,117330.0,0.10084]
[1758194927825,1.90381163,117340.0,117330.0,0.10084]
[1758194929121,1.13089163,117340.0,117330.0,0.10084]
[1758194929427,1.90381163,117340.0,117330.0,0.10084]
[1758194933627,1.13089163,117340.0,117330.0,0.10084]
[1758194934029,1.90377163,117340.0,117330.0,0.10084]
[1758194936837,1.13089163,117340.0,117330.0,0.10084]
[1758194937036,1.90377163,117340.0,117330.0,0.10084]
[1758194938237,1.88233038,117340.0,117330.0,0.10084]
[1758194938737,1.10945038,117340.0,117330.0,0.10084]
[1758194938930,1.88233038,117340.0,117330.0,0.10084]
[1758194939638,2.24313038,117340.0,117330.0,0.10084]
[1758194940534,1.99313038,117340.0,117330.0,0.10084]
[1758194940734,2.48660891,117340.0,117330.0,0.0773106]
[1758194940935,2.26454894,117340.0,117330.0,0.0773106]
[1758194941932,1.49166894,117340.0,117330.0,0.0773106]
[1758194942339,2.26454894,117340.0,117330.0,0.0773106]
[1758194942835,1.49166894,117340.0,117330.0,0.0773106]
[1758194943039,2.26454894,117340.0,117330.0,0.0773106]
[1758194943642,1.71372891,117340.0,117330.0,0.0423106]
[1758194943837,1.49166894,117340.0,117330.0,0.0423106]
[1758194944143,0.02133,117310.0,117300.0,0.51621057]
[1758194944339,0.40178362,117310.0,117300.0,0.51621057]
[1758194945837,0.40178362,117310.0,117300.0,0.51921057]
[1758194946735,0.40178362,117310.0,117300.0,0.52221057]
[1758194951049,1.53178362,117310.0,117300.0,0.52221057]
[1758194961351,1.53178362,117310.0,117300.0,0.598584]
[1758194962856,1.53178362,117310.0,117300.0,0.26439997]
[1758194963053,1.53178362,117310.0,117300.0,1.03719997]
[1758194963456,1.53178362,117310.0,117300.0,1.1135734]
[1758194964157,1.53178362,117310.0,117300.0,0.89151343]
[1758194964352,1.53178362,117310.0,117300.0,1.1135734]
[1758194964553,1.53178362,117310.0,117300.0,1.03719997]
[1758194965460,1.51045362,117310.0,117300.0,1.0903534]
[1758194965654,1.14965362,117310.0,117300.0,1.0903534]
[1758194965860,1.51045362,117310.0,117300.0,1.0903534]
[1758194966256,1.51045362,117310.0,117300.0,1.1755695]
[1758194968055,0.38045362,117310.0,117300.0,1.39762947]
[1758194968250,0.01965362,117310.0,117300.0,1.68762947]
[1758194972767,0.04293362,117310.0,117300.0,1.41935947]
[1758194975670,0.04293362,117310.0,117300.0,0.64663947]
[1758194975870,0.04293362,117310.0,117300.0,1.41931947]
[1758194977067,0.04293362,117310.0,117300.0,0.64663947]
[1758194977267,0.04293362,117310.0,117300.0,1.41931947]
[1758194979671,0.04293362,117310.0,117300.0,0.64663947]
[1758194979874,0.04293362,117310.0,117300.0,1.41927947]
[1758194980973,0.04293362,117310.0,117300.0,1.34290604]
[1758194983972,1.17293362,117310.0,117300.0,0.57026604]
[1758194984167,1.17293362,117310.0,117300.0,1.34286604]
[1758194984568,1.17293362,117310.0,117300.0,1.41923947]
[1758194989078,1.14965362,117310.0,117300.0,1.41923947]
[1758194989775,1.14965362,117310.0,117300.0,1.64125351]
[1758194989776,1.17293362,117310.0,117300.0,1.64125351]
[1758194997680,0.04293362,117310.0,117300.0,1.64125351]
[1758194997886,0.01965362,117310.0,117300.0,2.52874707]
[1758194998678,0.01965362,117310.0,117300.0,2.19568008]
[1758195000670,0.01965362,117310.0,117300.0,2.77874707]
[1758195000872,0.01965362,117310.0,117300.0,3.30874707]
[1758195001176,0.01965362,117310.0,117300.0,3.30862707]
[1758195002077,0.361,117330.0,117320.0,0.03534]
[1758195002283,0.3609,117330.0,117320.0,1.47391398]
[1758195002880,0.3609,117330.0,117320.0,1.55911558]
[1758195003384,0.3609,117330.0,117320.0,1.56011558]
[1758195004885,0.0001,117330.0,117320.0,1.56011558]
[1758195008882,0.0001,117330.0,117320.0,1.56003558]
[1758195009085,0.02308,117330.0,117320.0,1.56003558]
[1758195009692,0.02308,117330.0,117320.0,1.47483398]
[1758195009989,0.02308,117330.0,117320.0,0.70247398]
[1758195010289,0.02308,117330.0,117320.0,1.47483398]
[1758195010785,0.02308,117330.0,117320.0,0.70247398]
[1758195011092,0.02308,117330.0,117320.0,1.47483398]
[1758195012389,0.02308,117330.0,117320.0,1.47479398]
[1758195027894,0.02308,117330.0,117320.0,1.55126918]
[1758195034105,0.02308,117330.0,117320.0,1.63647078]
[1758195034606,0.0001,117330.0,117320.0,2.19953777]
[1758195034904,0.0001,117330.0,117320.0,1.86647078]
[1758195035298,0.0001,117330.0,117320.0,1.63627078]
[1758195035604,0.0001,117330.0,117320.0,1.91627078]
[1758195036003,0.0001,117330.0,117320.0,0.86415078]
[1758195036399,0.0001,117330.0,117320.0,1.86627078]
[1758195036900,0.0001,117330.0,117320.0,1.93378558]
[1758195037301,0.0001,117330.0,117320.0,1.86627078]
[1758195040706,0.0001,117330.0,117320.0,1.63623078]
[1758195040907,0.0001,117330.0,117320.0,1.88623078]
[1758195041104,0.0001,117330.0,117320.0,1.63623078]
[1758195041912,0.0001,117330.0,117320.0,1.70585174]
[1758195043111,0.0001,117330.0,117320.0,0.93377174]
[1758195043311,0.0001,117330.0,117320.0,1.70585174]
[1758195043508,0.0001,117330.0,117320.0,0.93377174]
[1758195043708,0.02319,117330.0,117320.0,1.62065014]
[1758195043908,0.02319,117330.0,117320.0,0.84857014]
[1758195044108,0.02319,117330.0,117320.0,1.62065014]
[1758195044308,0.02319,117330.0,117320.0,1.62061014]
[1758195046614,0.02319,117330.0,117320.0,0.84857014]
[1758195046815,0.02319,117330.0,117320.0,1.62061014]
[1758195047022,0.02319,117330.0,117320.0,0.84857014]
[1758195047314,0.02319,117330.0,117320.0,1.54413494]
[1758195048515,0.02319,117330.0,117320.0,1.62061014]
[1758195049316,0.02319,117330.0,117320.0,0.84857014]
[1758195049514,0.02319,117330.0,117320.0,1.62057014]
[1758195049707,0.02319,117330.0,117320.0,1.398394]
[1758195051518,0.02319,117330.0,117320.0,0.626394]
[1758195051718,0.02319,117330.0,117320.0,1.398394]
[1758195055113,0.02319,117330.0,117320.0,0.626394]
[1758195055320,0.02319,117330.0,117320.0,1.398394]
[1758195056421,0.02319,117330.0,117320.0,0.95439616]
[1758195056721,0.02319,117330.0,117320.0,1.17637508]
[1758195058719,0.02319,117330.0,117320.0,1.09989988]
[1758195060527,0.02319,117330.0,117320.0,0.87792096]
[1758195060728,0.02319,117330.0,117320.0,1.09989988]
[1758195061820,0.02319,117330.0,117320.0,0.87792096]
[1758195062120,0.02319,117330.0,117320.0,1.09989988]
[1758195062826,0.02319,117330.0,117320.0,1.17637508]
[1758195066429,0.04295766,117330.0,117320.0,1.17637508]
[1758195068933,0.88848658,117330.0,117320.0,0.02292]
[1758195069128,0.88848658,117330.0,117320.0,0.63776]
[1758195075632,0.88848658,117330.0,117320.0,0.77288]
[1758195075835,0.88848658,117330.0,117320.0,0.79577]
[1758195079027,0.88848658,117330.0,117320.0,0.02389]
[1758195079229,0.88848658,117330.0,117320.0,0.79577]
[1758195079632,1.1104655,117330.0,117320.0,0.001]
[1758195079831,0.88848658,117330.0,117320.0,0.001]
[1758195080639,0.88848658,117330.0,117320.0,0.02389]
[1758195084752,0.66650766,117330.0,117320.0,0.02389]
[1758195085044,0.88848658,117330.0,117320.0,0.02389]
[1758195098156,0.66650766,117330.0,117320.0,0.02389]
[1758195098355,0.88848658,117330.0,117320.0,0.02389]
[1758195098853,0.90984181,117330.0,117320.0,0.02389]
[1758195099250,0.65984181,117330.0,117320.0,0.02389]
[1758195103865,0.63848658,117330.0,117320.0,0.02389]
[1758195104261,0.65984542,117330.0,117320.0,0.02389]
[1758195108764,0.63848658,117330.0,117320.0,0.02389]
[1758195111768,0.74958172,117330.0,117320.0,0.02389]
[1758195112263,0.41650766,117330.0,117320.0,0.37044406]
[1758195112464,0.73683172,117330.0,117320.0,0.70351812]
[1758195112766,0.73683172,117330.0,117320.0,0.37044406]
[1758195113566,0.75070172,117330.0,117320.0,0.37044406]
[1758195114569,0.75070172,117330.0,117320.0,0.79573]
[1758195114769,0.75070172,117330.0,117320.0,1.12880406]
[1758195114970,0.75070172,117330.0,117320.0,0.35696406]
[1758195115269,0.75070172,117330.0,117320.0,1.12880406]
[1758195115565,0.75070172,117330.0,117320.0,0.35696406]
[1758195115870,0.75070172,117330.0,117320.0,1.12880406]
[1758195117174,0.75070172,117330.0,117320.0,0.02389]
[1758195117376,0.75070172,117330.0,117320.0,1.12880406]
[1758195123575,0.75070172,117330.0,117320.0,0.35696406]
[1758195123777,0.75070172,117330.0,117320.0,1.12880406]
[1758195131986,0.73683172,117330.0,117320.0,1.14151406]
[1758195132379,0.40375766,117330.0,117320.0,1.47458812]
[1758195134586,0.04295766,117330.0,117320.0,1.47458812]
[1758195134890,0.40375766,117330.0,117320.0,1.47458812]
[1758195135584,0.73683172,117330.0,117320.0,1.47458812]
[1758195140989,0.40375766,117330.0,117320.0,1.47458812]